Cogmind - Beta 15 @@@ ROGUE MODE // 2025.08.28 @ 18:26:04 Player: the Result: Destroyed by P-70 Sage with High-powered Shock Rifle Performance ------------- Evolutions (5) 2500 Regions Visited (15) 3000 Robots Destroyed (221) 1105 Value Destroyed (7618) 7618 Prototype IDs (48) 960 Alien Tech Used (0) 0 Bonus (4500) 4500 TOTAL SCORE: 19683 Bonus ------- High Alert Combat Kills 239 Follower Combat Kills 663 Aligned with FarCom 300 Met Imprinter 300 Was Imprinted 300 Met Warlord at Base 500 MAIN.C Attacked Warlord 500 Warlord Defense Kills 2048 Friendly Fire -350 Cogmind --------- Core Integrity 0/1000 Matter 39/300 Energy 65/100 System Corruption 4% Temperature Cool (0) Movement Core (250) Ox4 Location -5/Warlord Parts ------- > --- POWER (1) -------- (None) > --- PROPULSION (6) --- (None) > --- UTILITY (7) ------ (None) > --- WEAPON (3) ------- Vortex Cannon > --- INVENTORY (5) ---- AWS/Gauss Chain Missile Launcher Peak State ------------ > --- POWER ------------ Reinforced Deuterium Engine > --- PROPULSION ------- Armored Treads Armored Treads Medium Treads Armored Medium Treads Wheel Wheel > --- UTILITY ---------- High-capacity Storage Unit Advanced Sensor Array Advanced Signal Interpreter Experimental Terrain Scan Processor Experimental Armor Integrity Analyzer Transmission Jammer Layered Light Armor Plating > --- WEAPON ----------- Enhanced Coil Gun Molecular Deconstructor > --- INVENTORY -------- Neutrino Core Neutrino Core Improved Cooling System Advanced Sensor Array Advanced Recoil Stabilizer Improved Weapon Cycler Hardened Heavy Armor Plating Advanced Hacking Suite Authchip [Propulsion] Authchip [Propulsion] Authchip [Propulsion] Authchip [Processor] Authchip [Armor] Authchip [Weapon] Mobile Refinery Mk. CCLXVII Cooled Pulse Rifle AWS/Gauss Powered Hammer [Rating: 94] Favorites ----------- Power Reinforced Deuterium Engine Engine Reinforced Deuterium Engine Power Core Light Nuclear Core Reactor Zionite Heavy DM Reactor Propulsion Armored Wheel Treads Armored Treads Leg Medium Armored Exoskeleton Wheel Armored Wheel Flight Unit Nuclear Pulse Array Utility High-capacity Storage Unit Device Improved Sensor Array Storage High-capacity Storage Unit Processor Advanced Signal Interpreter Hackware Hacking Suite Protection Hardened Heavy Armor Plating Weapon Ripper Energy Gun Heavy EM Pulse Gun Energy Cannon Plasma Cannon Ballistic Gun AWS/Gauss Ballistic Cannon Mass Driver Launcher Vortex Catalyst Activator Special Weapon Molecular Deconstructor Impact Weapon Powered Hammer Slashing Weapon Ripper Piercing Weapon Spear Build | -11 -10 -10 -10 -9 -8 -7 -6 -6 -6 -6 -5 -5 -5 -5 -5 ------- Run | Yrd Mat Min Exi Min Mat Fac Fac Low Low Zio Pro Fac Upp Upp War Slots Evolved 10 | . . . . . 4 2 2 . . . . 2 . . . Power . | . . . . . . . . . . . . . . . . Propulsion 4 | . . . . . 2 1 1 . . . . . . . . Utility 5 | . . . . . 2 1 1 . . . . 1 . . . Weapon 1 | . . . . . . . . . . . . 1 . . . Parts Attached 169 | 8 14 4 2 2 23 20 19 5 6 7 3 28 10 6 12 Power 18 | 1 2 1 . . 3 2 3 . 1 . . 2 1 1 1 Engine 10 | 1 1 . . . 2 1 3 . 1 . . . 1 . . Core 7 | . 1 1 . . 1 1 . . . . . 1 . 1 1 Reactor 1 | . . . . . . . . . . . . 1 . . . Propulsion 38 | 2 3 . . . 5 5 6 2 1 1 2 8 . 2 1 Treads 9 | 2 1 . . . 1 . . . 1 1 2 1 . . . Leg 16 | . . . . . . 4 6 . . . . 3 . 2 1 Wheel 12 | . 2 . . . 4 1 . 2 . . . 3 . . . Hover . | . . . . . . . . . . . . . . . . Flight 1 | . . . . . . . . . . . . 1 . . . Utility 64 | 3 2 1 1 1 7 9 8 2 2 6 . 11 5 3 3 Device 20 | 2 . . . 1 2 3 3 1 1 1 . 1 4 1 . Storage 6 | 1 2 . 1 . . . . . . . . 2 . . . Processor 14 | . . 1 . . 2 . 3 . . 4 . 2 . 2 . Hackware 11 | . . . . . 2 3 1 . . . . 4 1 . . Protection 13 | . . . . . 1 3 1 1 1 1 . 2 . . 3 Artifact . | . . . . . . . . . . . . . . . . Weapon 49 | 2 7 2 1 1 8 4 2 1 2 . 1 7 4 . 7 Energy Gun 14 | . 2 1 . . 6 3 . . . . . 1 . . 1 Energy Cannon 9 | . 2 . . . . . . 1 2 . . 3 . . 1 Ballistic Gun 8 | 2 2 . 1 . 2 . . . . . . 1 . . . Ballistic Cannon 5 | . . . . . . . . . . . . 2 . . 3 Launcher 5 | . . 1 . . . . 2 . . . . . . . 2 Special Weapon 2 | . 1 . . . . . . . . . 1 . . . . Impact Weapon 1 | . . . . . . 1 . . . . . . . . . Slashing Weapon 4 | . . . . . . . . . . . . . 4 . . Piercing Weapon 1 | . . . . 1 . . . . . . . . . . . Special Melee Weapon . | . . . . . . . . . . . . . . . . Unidentified Prototypes 23 | . . . . . 4 2 . . . 4 1 7 . . 5 Parts Lost 48 | . . . . . . 7 4 8 4 . 3 9 6 1 6 Power 2 | . . . . . . . . 1 1 . . . . . . Propulsion 19 | . . . . . . 5 3 5 1 . 2 1 . . 2 Utility 22 | . . . . . . 1 1 1 1 . 1 7 5 1 4 Weapon 5 | . . . . . . 1 . 1 1 . . 1 1 . . Highest Loss Streak 8 | . . . . . . 5 2 8 3 . 2 7 2 1 5 To Critical Strikes . | . . . . . . . . . . . . . . . . Average Backups 15 | 4 13 20 20 19 19 18 16 15 15 17 16 12 5 10 12 Power 1 | . 1 1 1 1 2 1 2 1 . . . 1 . . . Propulsion . | 1 3 4 4 3 1 . . . . . . . . . . Utility 8 | . 3 7 8 9 8 10 10 11 11 12 13 8 2 4 5 Weapon 4 | 1 5 7 6 5 7 6 3 2 4 5 3 2 3 4 6 Tool/Special . | . . . . . . . . . . . . . . . . Unused Backups 46 | . 6 . . 1 10 9 2 1 1 3 . 7 1 1 4 Power 10 | . . . . . 2 2 2 1 . . . 3 . . . Propulsion 1 | . . . . 1 . . . . . . . . . . . Utility 19 | . 1 . . . 2 6 . . 1 1 . 4 1 1 2 Weapon 15 | . 5 . . . 5 1 . . . 2 . . . . 2 Tool/Special 1 | . . . . . 1 . . . . . . . . . . Average Slot Usage (%) 72 | . 99 100 89 85 92 92 79 57 56 68 72 62 49 46 64 Engine 3 | . 3 . . . . 5 6 5 5 6 6 2 1 3 . Core 3 | . 10 14 14 14 8 1 . . . . . . . . 4 Treads 5 | . 20 . . . . . . . . 12 22 12 . . . Leg 4 | . . . . . . 8 23 . . . . 2 11 7 13 Wheel 9 | . 7 28 28 28 34 25 1 . 6 6 . 4 . . . Device 7 | . 14 8 . . 9 7 4 12 7 5 1 4 3 4 4 Storage 7 | . 14 14 14 14 9 7 6 6 6 6 6 4 5 4 4 Processor 10 | . . 5 14 13 9 7 8 13 6 8 20 12 11 11 16 Hackware 4 | . . . . . 5 13 13 6 6 6 1 1 1 . . Protection 1 | . . . . . . . 2 . 5 5 4 2 . . 1 Energy Gun 2 | . 3 26 9 . 3 . 4 . . . . 1 . . . Energy Cannon 1 | . 1 . . . . . . 5 6 2 . 3 1 . . Ballistic Gun 3 | . 21 . 9 13 8 8 . . . 1 . . . . 1 Impact Weapon 1 | . . . . . . 1 5 3 . 3 . . . . . Slashing Weapon 1 | . . . . . . . . . . . . . 5 9 10 Peak Build Rating 94 | 7 14 17 29 30 45 54 68 68 46 69 76 94 93 74 88 Average Rating 47 | 5 11 15 25 29 39 48 53 41 39 51 73 69 70 56 67 On Entrance 40 | . 7 14 17 29 27 37 34 68 46 46 68 71 70 68 51 Naked Turns 146 | . . . . . . . . . . . . 141 . . 5 Heaviest Build 161 | 13 54 52 55 56 59 72 85 79 90 90 85 109 126 105 161 Greatest Support 100 | 40 40 32 32 32 48 50 95 95 26 10 88 100 100 100 48 Greatest Overweight (x) 31 | 1 1 1 1 1 2 5 8 26 8 8 6 7 1 31 8 Average Overweight (x) 2 | . . 1 1 1 1 1 1 12 7 6 1 1 . 2 2 Largest Inventory Capacity 25 | 8 20 20 20 20 20 20 20 20 20 20 20 25 25 25 25 Average Capacity 20 | 7 17 20 20 20 20 20 20 20 20 20 20 19 25 24 24 Most Carried 25 | 6 20 20 20 20 20 20 20 20 20 20 20 20 17 17 25 Average Carried 17 | 4 13 19 20 19 19 19 17 17 17 19 19 13 8 14 21 Final Capacity 25 | 8 20 20 20 20 20 20 20 20 20 20 20 25 25 25 5 Final Carried 20 | 6 20 20 20 20 20 19 20 20 19 20 18 6 16 14 4 Class Distribution -------------------- 59% | Mutant 12% | Derelict-Mutant 12% | Hacker-Mutant 7% | Assassin Dominant Class ---------------- Mutant | -10/Materials Mutant | -10/Mines Mutant | -10/Exiles Mutant | -9/Mines Mutant | -8/Materials Hacker-Mutant | -7/Factory Hacker-Mutant | -6/Factory Assassin | -6/Lower Caves Mutant | -6/Lower Caves Mutant | -6/Zion Mutant | -5/Proximity Caves Mutant | -5/Factory Mutant | -5/Upper Caves Mutant | -5/Upper Caves Derelict-Mutant | -5/Warlord Resources | -11 -10 -10 -10 -9 -8 -7 -6 -6 -6 -6 -5 -5 -5 -5 -5 ----------- Run | Yrd Mat Min Exi Min Mat Fac Fac Low Low Zio Pro Fac Upp Upp War Matter Collected 5355 | 410 832 242 40 40 568 756 584 144 85 133 316 524 412 117 152 Remotely . | . . . . . . . . . . . . . . . . Salvage Created 7316 | 315 940 757 . 56 1226 1301 958 412 130 . 371 401 241 . 208 Parts 411 | 29 60 54 . 2 72 76 48 13 7 . 22 19 6 . 3 Haulers Intercepted 7 | . 2 . . . 4 1 . . . . . . . . . Recyclers Shooed 5 | . . 1 . . . 1 . . . . . 3 . . . Parts Field Recycled . | . . . . . . . . . . . . . . . . Retrieved Matter . | . . . . . . . . . . . . . . . . Parts Self-Destructed 50 | . . . . . . . . 13 7 . 24 . 6 . . Prevented 2 | . . . . . . . . . . . 2 . . . . Kills | -11 -10 -10 -10 -9 -8 -7 -6 -6 -6 -6 -5 -5 -5 -5 -5 ------- Run | Yrd Mat Min Exi Min Mat Fac Fac Low Low Zio Pro Fac Upp Upp War Combat Hostiles Destroyed 151 | . 15 12 . 2 20 25 25 11 5 . 8 6 7 . 15 Guns 85 | . 15 3 . 2 20 25 12 6 . . 1 1 . . . Cannons 20 | . . . . . . . . 4 4 . . 3 7 . 2 AOE 35 | . . 9 . . . . 12 1 . . . . . . 13 Classes Destroyed 24 | 3 7 . . 1 1 2 2 . 1 . 2 . . . 5 Worker 13 | 1 3 3 . . 1 1 2 . . . . 2 . . . Builder 8 | . 2 1 . . 1 1 1 . . . . 2 . . . Tunneler 14 | 9 . 3 . . 1 . 1 . . . . . . . . Hauler 7 | . 2 . . . 4 1 . . . . . . . . . Recycler 8 | 1 2 4 . . . . . . . . . 1 . . . Minesweeper 1 | . . . . . . . . . . . 1 . . . . Mechanic 6 | . 1 1 . . 1 . 2 . . . . . . . 1 Operator 4 | . 2 . . . 1 1 . . . . . . . . . Watcher 9 | . 3 . . . 4 2 . . . . . . . . . Swarmer 46 | . 6 6 . . 5 6 10 4 4 . . . 5 . . Grunt 50 | . 9 6 . 1 10 10 6 4 . . . . 1 . 3 Brawler 8 | . . . . . . . 3 2 . . . . . . 3 Duelist 2 | . . . . . . . . . . . . . . . 2 Protector 1 | . . . . . . . . . . . . . . . 1 Sentry 13 | . . . . . 5 3 3 1 . . . . 1 . . Demolisher 1 | . . . . . . . . . . . . . . . 1 Specialist 6 | . . . . . . 2 . . . . 3 . . . 1 Hunter 5 | . . . . . . . 1 . . . 3 . . . 1 Programmer 13 | . . . . . . 4 2 . . . 1 6 . . . Behemoth 2 | . . . . . . . . . . . 1 . . . 1 Striker 1 | . . . . . . . . . . . . . . . 1 Executioner 1 | . . . . . . . . . . . . . . . 1 Decomposer 1 | . . . . . . . . 1 . . . . . . . Master Thief 1 | . . . . . . . . . 1 . . . . . . Assembled 1 | . . . . 1 . . . . . . . . . . . Savage 1 | . . . . . . . . . . . . . . . 1 Best Kill Streak 14 | 5 6 6 . 1 5 4 6 4 4 . 4 3 4 . 14 Combat Bots Only 13 | . 6 3 . 1 5 4 5 4 4 . 4 2 4 . 13 Max Kills in Single Turn 4 | 2 2 4 . 1 1 2 3 1 1 . 1 2 1 . 4 Gunslinging 1 | . 1 . . . . . . . . . . . . . . Exploded 4 | . . 2 . . . . 3 1 . . . . . . 4 Melee . | . . . . . . . . . . . . . . . . Uniques/NPCs Destroyed . | . . . . . . . . . . . . . . . . Combat | -11 -10 -10 -10 -9 -8 -7 -6 -6 -6 -6 -5 -5 -5 -5 -5 -------- Run | Yrd Mat Min Exi Min Mat Fac Fac Low Low Zio Pro Fac Upp Upp War Hostile Shots Fired 1020 | . 40 22 . . 54 209 155 164 42 . 90 93 82 7 62 Missed 338 | . 15 1 . . 17 76 59 72 10 . 21 32 23 1 11 Hits 682 | . 25 21 . . 37 133 96 92 32 . 69 61 59 6 51 Melee 19 | . . . . . . . . . 4 . . . . 6 9 Projectile 663 | . 25 21 . . 37 133 96 92 28 . 69 61 59 . 42 AOE 8 | . . . . . . . . . . . . . . . 8 Critical Strikes 17 | . . . . . 2 1 . 3 . . 3 4 2 . 2 Part Disruptions 6 | . . . . . . . . . . . 4 2 . . . Damage Taken 11692 | . 272 198 . . 365 1672 1659 1278 432 . 1174 1285 977 6 2374 Core 1787 | . 30 67 . . 46 163 182 206 13 . 75 493 24 . 488 Absorbed by Shields . | . . . . . . . . . . . . . . . . Ignored by Resistances 30 | . . . . . . 14 16 . . . . . . . . Regen/Repaired (Parts) 579 | . . . . . . 103 144 . . 273 . . . . 59 Core Remaining (%) 74 | 100 . . . 61 91 76 . . . . 44 . . . . Volleys Fired 493 | 21 72 34 . . 34 46 84 47 9 1 33 64 31 . 17 Largest 3 | 2 2 2 . . 2 2 1 1 2 1 1 3 2 . 3 Hottest 170 | 40 136 100 . . 160 122 60 80 149 80 80 170 128 . 160 Shots Fired 837 | 42 132 53 . 3 132 160 83 47 12 1 45 66 33 . 28 Gun 621 | 42 118 39 . 3 132 160 73 22 . . 12 18 . . 2 Cannon 119 | . 2 . . . . . . 19 12 1 1 34 33 . 17 Launcher 37 | . . 12 . . . . 10 6 . . . . . . 9 Special 60 | . 12 2 . . . . . . . . 32 14 . . . Kinetic 493 | 42 112 . . 3 116 146 . . . . 12 16 30 . 16 Thermal 200 | . 14 2 . . 16 14 73 41 7 1 1 31 . . . Explosive 31 | . . 12 . . . . 10 6 . . . . . . 3 Electromagnetic 58 | . 6 39 . . . . . . 5 . . 5 3 . . Entropic 9 | . . . . . . . . . . . . . . . 9 Robot Hit Streak 19 | 5 13 7 . 10 19 17 14 19 4 . 19 8 8 . 16 Robot Miss Streak 4 | 3 2 2 . . 4 4 3 3 2 . 2 1 2 . 4 Penetration Max 1 | . . . . . . 1 . . . . . . . . . Secondary Targets 11 | . 7 . . . . 4 . . . . . . . . . Max Gunslinging Chain 1 | . 1 . . . . 1 . . . . . . . . . Autonomous 156 | . . . . 3 65 72 . . . . 13 . . . 3 Shots Hit Robots 552 | 22 88 27 . 3 103 115 52 32 7 . 28 30 27 2 16 Core Hits 319 | 12 39 26 . 2 46 50 50 24 4 . 3 21 9 1 32 Critical Kills 5 | 1 1 . . 1 2 . . . . . . . . . . Critical Parts Destroyed 4 | . 1 . . . 1 1 . . 1 . . . . . . Critical Strikes 19 | 1 2 . . 1 3 1 3 1 1 . . 1 4 . 1 Burn 4 | . . . . . . . 3 1 . . . . . . . Destroy 8 | 1 2 . . 1 3 1 . . . . . . . . . Blast 4 | . . . . . . . . . . . . . 4 . . Corrupt 1 | . . . . . . . . . . . . 1 . . . Smash 1 | . . . . . . . . . 1 . . . . . . Sunder 1 | . . . . . . . . . . . . . . . 1 Melee Attacks 38 | . . . . 1 6 10 4 4 3 . . . 3 7 . Impact 17 | . . . . . . 6 4 4 3 . . . . . . Slashing 10 | . . . . . . . . . . . . . 3 7 . Piercing 11 | . . . . 1 6 4 . . . . . . . . . Sneak Attacks 1 | . . . . . . . 1 . . . . . . . . Combat Hostiles . | . . . . . . . . . . . . . . . . Follow-up Attacks . | . . . . . . . . . . . . . . . . Damage Inflicted 21997 | 295 1357 1168 . 121 2667 3256 3907 1357 183 . 240 1098 910 65 5373 Guns 10373 | 295 1316 357 . 121 2667 2680 1819 562 . . 240 257 . . 59 Cannons 2269 | . 41 . . . . . . 231 150 . . 685 747 . 415 Explosions 8911 | . . 811 . . . 514 1967 564 . . . 156 . . 4899 Melee 444 | . . . . . . 62 121 . 33 . . . 163 65 . Ramming . | . . . . . . . . . . . . . . . . Kinetic 8038 | 295 1266 . . 121 2301 2480 . . . . 240 339 732 . 264 Thermal 4617 | . 41 . . . 366 714 2054 793 103 . . 546 . . . Explosive 3794 | . . 811 . . . . 1732 564 . . . . . . 687 Electromagnetic 682 | . 50 357 . . . . . . 47 . . 213 15 . . Impact 216 | . . . . . . 62 121 . 33 . . . . . . Slashing 228 | . . . . . . . . . . . . . 163 65 . Piercing . | . . . . . . . . . . . . . . . . Entropic 4422 | . . . . . . . . . . . . . . . 4422 Highest Corruption 12 | . . . . . 3 4 1 1 . . 7 12 12 . 4 Average Corruption 5 | . . . . . 3 1 1 1 . . 6 8 6 . 2 Corruption Purged 17 | . . . . . . 4 . 1 . . . . 12 . . Corruption Blocked . | . . . . . . . . . . . . . . . . Effects 97 | . . . . . . 12 2 1 . . 21 58 3 . . Message Errors 25 | . . . . . . 1 . . . . 8 16 . . . Matter Fused 23 | . . . . . . 4 1 . . . 4 13 1 . . Heat Flow Errors 14 | . . . . . . 1 . . . . 3 10 . . . Energy Discharges 14 | . . . . . . 2 . . . . 2 9 1 . . Data Loss (minor) 7 | . . . . . . . . . . . 3 4 . . . Data Loss (major) 4 | . . . . . . 2 . . . . . 2 . . . Misfires 2 | . . . . . . 1 . . . . . 1 . . . Alerts 4 | . . . . . . 1 . 1 . . 1 . 1 . . Weapon Failures 4 | . . . . . . . 1 . . . . 3 . . . Overload Shots 75 | . . . . . . . 62 13 . . . . . . . Effects 3 | . . . . . . . 2 1 . . . . . . . Energy Bleed 2 | . . . . . . . 1 1 . . . . . . . Heat Surge 1 | . . . . . . . 1 . . . . . . . . Overflow Damage 882 | . . 33 . . . 68 339 19 33 . . 32 51 . 307 Projectiles 88 | . . . . . . . . . . . . 32 44 . 12 Explosions 655 | . . 33 . . . 68 240 19 . . . . . . 295 Melee 139 | . . . . . . . 99 . 33 . . . 7 . . Knockbacks 9 | . . . . . . . . . . . . 1 3 . 5 Impact . | . . . . . . . . . . . . . . . . Kinetic 8 | . . . . . . . . . . . . 1 2 . 5 Secondary 1 | . . . . . . . . . . . . . 1 . . Self-Inflicted Damage 1098 | . . 3 . . . 35 503 89 . . . 34 . . 434 Shots 17 | . . 1 . . . 1 7 2 . . . 2 . . 4 Rammed . | . . . . . . . . . . . . . . . . Targets Rammed . | . . . . . . . . . . . . . . . . Kicked . | . . . . . . . . . . . . . . . . Crushed . | . . . . . . . . . . . . . . . . Highest Temperature 418 | . 140 252 . . 87 284 350 291 385 225 185 375 322 . 418 Average Temperature 94 | . 33 60 . . 16 80 117 75 199 90 72 95 133 . 202 Received Heat Transfer 1557 | . 114 48 . . 54 303 240 429 . . 81 162 108 . 18 Effects 13 | . . 2 . . . . 2 . 2 . . . 5 . 2 Shutdowns 1 | . . . . . . . . . . . . . . . 1 Energy Bleed 1 | . . . . . . . . . . . . . 1 . . Interference 8 | . . 2 . . . . . . 1 . . . 4 . 1 Matter Decay 1 | . . . . . . . 1 . . . . . . . . Short Circuit 1 | . . . . . . . . . 1 . . . . . . Damage (minor) 1 | . . . . . . . 1 . . . . . . . . Siege Activations . | . . . . . . . . . . . . . . . . Martial Activations . | . . . . . . . . . . . . . . . . Shielding Activations . | . . . . . . . . . . . . . . . . Robots Disrupted 2 | . . 1 . . . . . . . . . 1 . . . Combat Hostiles 1 | . . 1 . . . . . . . . . . . . . Robots Corrupted 1 | . . . . . . . . . 1 . . . . . . Combat Hostiles 1 | . . . . . . . . . 1 . . . . . . Parts Fried 7 | . . 1 . . . . 2 . 3 . . 1 . . . Impact Corruptions 3 | . . . . . . . 1 . 2 . . . . . . Robots Melted 1 | . . . . . . . 1 . . . . . . . . Combat Hostiles 1 | . . . . . . . 1 . . . . . . . . Parts Melted 19 | . . . . . 5 2 9 2 . . . 1 . . . Heat Transferred 6677 | . 74 . . . 825 794 2798 1357 200 . . 629 . . . Parts Sabotaged . | . . . . . . . . . . . . . . . . Parts Stolen 8 | . . . . . . . . . 3 . . . . 5 . Parts Stripped . | . . . . . . . . . . . . . . . . Power Chain Reactions . | . . . . . . . . . . . . . . . . Alert | -11 -10 -10 -10 -9 -8 -7 -6 -6 -6 -6 -5 -5 -5 -5 -5 ------- Run | Yrd Mat Min Exi Min Mat Fac Fac Low Low Zio Pro Fac Upp Upp War Maximum Alert Level 3 | . . . . . 1 1 3 . . . . . . . . Low Security (%) 77 | 100 100 100 . 100 81 47 31 . . . . 100 . . . Level 1 12 | . . . . . 18 52 4 . . . . . . . . Level 2 9 | . . . . . . . 60 . . . . . . . . Level 3 . | . . . . . . . 3 . . . . . . . . Level 4 . | . . . . . . . . . . . . . . . . Level 5 . | . . . . . . . . . . . . . . . . High Security . | . . . . . . . . . . . . . . . . Max Security . | . . . . . . . . . . . . . . . . Peak Influence 744 | 20 198 180 . 41 308 391 744 . . . . 101 . . . Initial 179 | . 6 . . . . 129 179 . . . . . . . . Average 139 | 2 59 50 . 5 142 182 443 . . . . 17 . . . Influence Increases 5825 | 55 478 462 . 66 987 988 1165 255 90 . 301 473 170 . 335 Destroy 0b10 Robot/C 3320 | . 300 260 . 40 560 500 500 220 80 . 240 200 140 . 280 Destroy 0b10 Robot/NC 365 | 55 75 60 . . 70 30 30 . . . 5 25 5 . 10 Destroy Leader 652 | . 70 50 . 10 146 136 120 20 10 . 30 50 10 . . Allied During Kill 134 | . . 5 . 13 65 . . . . . 26 25 . . . Successful Hack 174 | . 22 6 . . 19 17 110 . . . . . . . . Disable Machine 465 | . . . . . 45 195 135 . . . . 90 . . . Anti-Garrison Action 150 | . . . . . . . 150 . . . . . . . . Destroy Structure 295 | . 11 81 . 3 37 50 75 . . . . 38 . . . Lose Combat Pursuer 270 | . . . . . 45 60 45 15 . . . 45 15 . 45 Influence Decreases 5556 | 45 486 334 130 66 702 905 795 993 90 . 301 386 257 . 66 Entered New Map 788 | . 4 2 130 . . 156 189 274 . . . . 33 . . Time Decay 3717 | 45 329 332 . 66 472 537 556 639 70 . 235 246 184 . 6 Lost Part 358 | . . . . . . 70 40 80 20 . 10 38 40 . 60 Lost Ally 248 | . . . . . 80 . 10 . . . 56 102 . . . Purge Threat 445 | . 153 . . . 150 142 . . . . . . . . . Squads Dispatched 41 | . 2 1 . 1 3 16 12 . . . . 6 . . . Investigation 15 | . . . . 1 1 9 4 . . . . . . . . Extermination 11 | . . . . . . 5 3 . . . . 3 . . . Reinforcement 11 | . 2 . . . 2 2 2 . . . . 3 . . . Assault 4 | . . 1 . . . . 3 . . . . . . . . Garrison . | . . . . . . . . . . . . . . . . Intercept . | . . . . . . . . . . . . . . . . Searches Triggered . | . . . . . . . . . . . . . . . . Construction Impeded 4 | . . . . . 1 . 2 . . . . 1 . . . Haulers Reinforced . | . . . . . . . . . . . . . . . . Active Scanning Responses . | . . . . . . . . . . . . . . . . Cargo Convoy Interrupts 1 | . . . . . . 1 . . . . . . . . . Stealth | -11 -10 -10 -10 -9 -8 -7 -6 -6 -6 -6 -5 -5 -5 -5 -5 --------- Run | Yrd Mat Min Exi Min Mat Fac Fac Low Low Zio Pro Fac Upp Upp War Distress Signals 11 | . 2 . . . 3 2 1 . . . . 1 . . 2 Communications Jammed . | . . . . . . . . . . . . . . . . Distress Signals . | . . . . . . . . . . . . . . . . Times Spotted 240 | . 25 13 . 2 37 46 36 12 10 . 12 14 9 4 20 Peak Tracking Total 14 | . 7 4 . 1 7 8 4 6 4 . 5 4 4 4 14 Tactical Retreats 16 | . . . . . 3 3 3 1 . . . 2 1 . 3 Traps | -11 -10 -10 -10 -9 -8 -7 -6 -6 -6 -6 -5 -5 -5 -5 -5 ------- Run | Yrd Mat Min Exi Min Mat Fac Fac Low Low Zio Pro Fac Upp Upp War Traps Triggered 6 | . . . . . . 4 1 . . . . 1 . . . Indirectly . | . . . . . . . . . . . . . . . . Trap Hack Attempts . | . . . . . . . . . . . . . . . . Triggered . | . . . . . . . . . . . . . . . . Disarmed . | . . . . . . . . . . . . . . . . Reprogrammed 6 | . 6 . . . . . . . . . . . . . . Reused . | . . . . . . . . . . . . . . . . Traps Extracted . | . . . . . . . . . . . . . . . . Installed . | . . . . . . . . . . . . . . . . Triggered . | . . . . . . . . . . . . . . . . Most Traps Carried 1 | . . . . . . . . . . . 1 1 . . . Machines | -11 -10 -10 -10 -9 -8 -7 -6 -6 -6 -6 -5 -5 -5 -5 -5 ---------- Run | Yrd Mat Min Exi Min Mat Fac Fac Low Low Zio Pro Fac Upp Upp War Machines Disabled 36 | . . . . . 3 13 10 . . . 1 6 . . 3 Max in Single Turn 11 | . . . . . 1 11 7 . . . 1 2 . . 2 Garrison Access 2 | . . . . . . . 1 . . . . 1 . . . Machines Repaired . | . . . . . . . . . . . . . . . . Machines Dismantled . | . . . . . . . . . . . . . . . . Machines Sabotaged . | . . . . . . . . . . . . . . . . Overloaded Fab Kills . | . . . . . . . . . . . . . . . . Hacking | -11 -10 -10 -10 -9 -8 -7 -6 -6 -6 -6 -5 -5 -5 -5 -5 --------- Run | Yrd Mat Min Exi Min Mat Fac Fac Low Low Zio Pro Fac Upp Upp War Machines Accessed 58 | . 7 1 2 1 9 22 10 . . . . 2 1 . 3 Terminals 34 | . 6 1 . . 8 12 7 . . . . . . . . Fabricators 7 | . . . . . . 5 1 . . . . 1 . . . Repair Stations 5 | . 1 . . . . 2 2 . . . . . . . . Recycling Units . | . . . . . . . . . . . . . . . . Scanalyzers 2 | . . . . . 1 1 . . . . . . . . . Garrison Access 3 | . . . . . . 2 . . . . . 1 . . . Total Hacks 181 | . 27 4 2 1 51 54 27 . . . . 6 1 . 8 Successful 124 | . 15 2 2 1 41 33 16 . . . . 5 1 . 8 Failed 55 | . 11 2 . . 9 21 11 . . . . 1 . . . Catastrophic 13 | . 1 . . . 1 7 4 . . . . . . . . Database Lockouts 2 | . 1 . . . 1 . . . . . . . . . . Manual 81 | . 11 2 1 . 12 24 15 . . . 1 15 . . . Terminals 97 | . 25 4 . . 24 24 20 . . . . . . . . Fabricators 18 | . . . . . . 11 3 . . . . 4 . . . Repair Stations 9 | . 2 . . . . 3 4 . . . . . . . . Recycling Units . | . . . . . . . . . . . . . . . . Scanalyzers 40 | . . . . . 27 13 . . . . . . . . . Garrison Access 5 | . . . . . . 3 . . . . . 2 . . . Terminal Hacks 47 | . 12 2 2 1 9 6 6 . . . . . 1 . 8 Record 9 | . . . 1 . 1 . . . . . . . . . 7 Part Schematic 7 | . 2 . . . 2 . 3 . . . . . . . . Robot Analysis 4 | . 2 1 . . . . 1 . . . . . . . . Prototype ID Bank 1 | . 1 . . . . . . . . . . . . . . Open Door 3 | . . . . 1 . . . . . . . . 1 . 1 Level Access Points 1 | . . . . . . 1 . . . . . . . . . Branch Access Points 1 | . . . . . . 1 . . . . . . . . . Terminal Index 2 | . 1 . . . . 1 . . . . . . . . . Fabricator Index 2 | . . . . . . 1 1 . . . . . . . . Repair Station Index 1 | . . . . . 1 . . . . . . . . . . Scanalyzer Index 1 | . . . . . 1 . . . . . . . . . . Unreport Threat 4 | . 2 . . . 1 1 . . . . . . . . . Locate Traps 1 | . 1 . . . . . . . . . . . . . . Reprogram Traps 2 | . 2 . . . . . . . . . . . . . . Hauler Manifests 2 | . 1 . . . 1 . . . . . . . . . . Registered Components 3 | . . . . . 1 1 1 . . . . . . . . Zone Layout 2 | . . 1 . . 1 . . . . . . . . . . Proto ID Catalog 1 | . . . 1 . . . . . . . . . . . . Fabricator Hacks 10 | . . . . . . 5 1 . . . . 4 . . . Load Schematic 8 | . . . . . . 5 1 . . . . 2 . . . Build 2 | . . . . . . . . . . . . 2 . . . Repair Station Hacks 7 | . 1 . . . . 2 4 . . . . . . . . Scan Component 3 | . . . . . . 1 2 . . . . . . . . Repair 3 | . . . . . . 1 2 . . . . . . . . Refit 1 | . 1 . . . . . . . . . . . . . . Recycling Unit Hacks . | . . . . . . . . . . . . . . . . Scanalyzer 40 | . . . . . 27 13 . . . . . . . . . Insert Component 17 | . . . . . 11 6 . . . . . . . . . Analyze 23 | . . . . . 16 7 . . . . . . . . . Garrison Access Hacks 1 | . . . . . . . . . . . . 1 . . . Seal Access 1 | . . . . . . . . . . . . 1 . . . Unauthorized Hacks 19 | . 2 . . . 5 7 5 . . . . . . . . Terminals 13 | . 2 . . . 5 2 4 . . . . . . . . Assimilate 4 | . . . . . 1 2 1 . . . . . . . . Botnet 8 | . 2 . . . 3 . 3 . . . . . . . . Operators 1 | . . . . . 1 . . . . . . . . . . Fabricators 6 | . . . . . . 5 1 . . . . . . . . Recompile 6 | . . . . . . 5 1 . . . . . . . . Repair Stations . | . . . . . . . . . . . . . . . . Recycling Units . | . . . . . . . . . . . . . . . . Scanalyzers . | . . . . . . . . . . . . . . . . Garrison Access . | . . . . . . . . . . . . . . . . Data Cores Recovered 3 | . . . . . 2 1 . . . . . . . . . Used 1 | . . . . . . 1 . . . . . . . . . Hacking Detections 43 | . 6 1 . . 8 18 9 . . . . 1 . . . Full Trace Events 7 | . . . . . 1 4 2 . . . . . . . . Feedback Events 3 | . . . . . . 2 1 . . . . . . . . Corruption 3 | . . . . . . 2 1 . . . . . . . . Feedback Blocked . | . . . . . . . . . . . . . . . . Robot Schematics Acquired 4 | . . . . . . . . . . 4 . . . . . Robots Built . | . . . . . . . . . . . . . . . . Authchips . | . . . . . . . . . . . . . . . . Time . | . . . . . . . . . . . . . . . . Total Robot Build Rating . | . . . . . . . . . . . . . . . . Part Schematics Acquired 37 | . 2 . . . 13 6 3 . . 13 . . . . . Parts Built 2 | . . . . . . . . . . . . 2 . . . Authchips 2 | . . . . . . . . . . . . 2 . . . Time 212 | . . . . . . . . . . . . 212 . . . Total Part Build Rating 12 | . . . . . . . . . . . . 12 . . . Parts Repaired 3 | . . . . . . 1 2 . . . . . . . . Time 110 | . . . . . . 44 66 . . . . . . . . Parts Recycled . | . . . . . . . . . . . . . . . . Recycled Matter . | . . . . . . . . . . . . . . . . Retrieved Matter . | . . . . . . . . . . . . . . . . Retrieved Components . | . . . . . . . . . . . . . . . . Parts Scanalyzed 17 | . . . . . 11 6 . . . . . . . . . Part Schematics Acquired 17 | . . . . . 11 6 . . . . . . . . . Parts Damaged 3 | . . . . . 2 1 . . . . . . . . . Bothacking | -11 -10 -10 -10 -9 -8 -7 -6 -6 -6 -6 -5 -5 -5 -5 -5 ------------ Run | Yrd Mat Min Exi Min Mat Fac Fac Low Low Zio Pro Fac Upp Upp War Used RIF Installer . | . . . . . . . . . . . . . . . . Robots Hacked . | . . . . . . . . . . . . . . . . Non-combat . | . . . . . . . . . . . . . . . . Combat . | . . . . . . . . . . . . . . . . Robot Hacks Applied . | . . . . . . . . . . . . . . . . Relay Couplers Released 3 | . . . . . . . 3 . . . . . . . . Machine Destruction 3 | . . . . . . . 3 . . . . . . . . Fabnet Peak Effective % . | . . . . . . . . . . . . . . . . Robots Rewired . | . . . . . . . . . . . . . . . . Allies Hacked . | . . . . . . . . . . . . . . . . Hacks Repelled . | . . . . . . . . . . . . . . . . Allies | -11 -10 -10 -10 -9 -8 -7 -6 -6 -6 -6 -5 -5 -5 -5 -5 -------- Run | Yrd Mat Min Exi Min Mat Fac Fac Low Low Zio Pro Fac Upp Upp War Total Allies 17 | . . 1 . 3 . . 1 . . 4 . 8 . . . Largest Group 4 | . . 1 1 4 4 . 1 . . 4 4 3 . . . Highest-Rated Group 210 | . . 31 31 71 71 . 26 . . 151 151 210 . . . Highest-Rated Ally 85 | . . 31 31 31 31 . 26 . . 40 40 85 . . . Zionite Dispatches 3 | . . . . . . . . . . . . 3 . . . Heavy 1 | . . . . . . . . . . . . 1 . . . Light 2 | . . . . . . . . . . . . 2 . . . Total Orders 11 | . . . . . 2 . 1 . . . . . . 8 . STAY 3 | . . . . . 1 . 1 . . . . . . 1 . ROAM 1 | . . . . . . . . . . . . . . 1 . FOLLOW 1 | . . . . . 1 . . . . . . . . . . EXPLORE 4 | . . . . . . . . . . . . . . 4 . RETURN 2 | . . . . . . . . . . . . . . 2 . Ally Attacks 117 | . . 2 . 5 40 . . . . . 30 40 . . . Total Damage 2602 | . . 21 . 49 517 . . . . . 770 1245 . . . Kills 19 | . . 1 . 1 9 . . . . . 4 4 . . . Allies Corrupted . | . . . . . . . . . . . . . . . . Allies Melted 1 | . . . . . . . . . . . . . . . 1 Intel | -11 -10 -10 -10 -9 -8 -7 -6 -6 -6 -6 -5 -5 -5 -5 -5 ------- Run | Yrd Mat Min Exi Min Mat Fac Fac Low Low Zio Pro Fac Upp Upp War Active Infowar (turns) 15262 | 97 1701 739 . 14 1552 1772 1629 3328 505 2321 371 1164 19 50 . Optics 8310 | . . . . . 1533 1772 1629 3328 3 . . . . 45 . Sensors 7198 | . . . . . . . 606 3229 505 1323 371 1164 . . . Traps 24 | . . . . . . . . . . . . . 19 5 . Seismic 4374 | 97 1701 739 . 14 784 1039 . . . . . . . . . Machine Analysis 132 | . . . . . 132 . . . . . . . . . . Jamming 1957 | . . . . . . . 506 . 23 998 . 430 . . . Robot Analysis Total 4 | . 2 1 . . . . 1 . . . . . . . . Derelict Logs Recovered 5 | . . 2 . 1 . . . . . 1 . . 1 . . Drone Launches 3 | . . . . . . . . . . . . . . 3 . Drone Recoveries 2 | . . . . . . . . . . . . . . 2 . Zionite Intel Received 2 | . . . . . . . . . . . . 2 . . . Trap Installations 1 | . . . . . . . . . . . . 1 . . . Active Terminals 1 | . . . . . . . . . . . . 1 . . . Exploration | -11 -10 -10 -10 -9 -8 -7 -6 -6 -6 -6 -5 -5 -5 -5 -5 ------------- Run | Yrd Mat Min Exi Min Mat Fac Fac Low Low Zio Pro Fac Upp Upp War Turns Passed 22900 | 221 1701 1254 421 419 1552 1772 1629 3328 541 2369 1154 1982 920 1221 2416 Spaces Moved 11072 | 75 834 822 357 337 1188 1330 930 510 255 1230 461 1173 446 330 794 Core 650 | 13 . . . . . . . 248 . . . 353 . 27 9 Treads 1167 | 62 480 . . . . . . . . . 412 213 . . . Legs 2365 | . . . . . . 9 633 18 . . . 171 446 303 785 Wheels 6869 | . 354 822 357 337 1188 1321 297 244 255 1230 49 415 . . . Hover . | . . . . . . . . . . . . . . . . Flight 21 | . . . . . . . . . . . . 21 . . . Fastest Speed 40 | 50 100 115 115 115 90 90 114 120 105 170 166 40 140 140 50 Average Speed 176 | 143 164 115 115 115 105 105 140 627 189 184 214 129 171 249 293 Slowest Speed 1600 | 160 240 115 115 115 125 189 265 1350 200 200 246 250 250 1600 680 Overloaded Moves . | . . . . . . . . . . . . . . . . Propulsion Burnouts . | . . . . . . . . . . . . . . . . Robots Hopped 1 | . . . . . . . . . . . . 1 . . . Potential Cave-ins . | . . . . . . . . . . . . . . . . Cave-ins Triggered . | . . . . . . . . . . . . . . . . Exploration Rate (%) 62 | 6 94 98 69 60 77 47 27 71 44 90 66 27 64 78 82 Regions Visited 15 Branch Regions 10 Pre-discovered Areas 3 | . . 1 1 . . . . . . 1 . . . . . Known Exits Taken 8 | . . . . . . 1 1 1 1 1 1 1 . 1 . Unknown Exits Taken 7 | 1 1 1 1 1 1 . . . . . . . 1 . . Scrap Searched 16 | . . 1 . 3 . . . 1 2 3 1 . 2 3 . Spaces Dug 60 | . 7 1 . . 4 6 11 17 . . . 12 . 2 . Terrain Destroyed 548 | . 12 147 . 3 39 56 80 86 . . 6 19 8 2 90 Melee 19 | . . . . . 4 6 3 4 . . . . . 2 . Projectile 124 | . 12 2 . 3 35 20 11 6 . . 6 19 8 . 2 AOE 405 | . . 145 . . . 30 66 76 . . . . . . 88 Terrain Rammed . | . . . . . . . . . . . . . . . . Walls Destroyed . | . . . . . . . . . . . . . . . . Machines Disabled . | . . . . . . . . . . . . . . . . Actions | -11 -10 -10 -10 -9 -8 -7 -6 -6 -6 -6 -5 -5 -5 -5 -5 --------- Run | Yrd Mat Min Exi Min Mat Fac Fac Low Low Zio Pro Fac Upp Upp War Total 13626 | 142 1008 1070 370 369 1432 1630 1151 583 296 1324 565 1549 566 719 852 Wait 1344 | 33 29 198 3 16 111 100 89 5 6 64 38 234 59 357 2 Move 11055 | 74 833 821 356 336 1187 1329 929 509 254 1229 460 1170 445 329 794 Hop 1 | . . . . . . . . . . . . 1 . . . Pick Up 164 | 5 25 2 3 5 25 30 8 4 6 6 7 14 7 9 8 Fast Attach 107 | 7 4 1 1 1 7 15 11 3 4 3 4 24 6 10 6 Attach 85 | . . . . 2 11 20 4 6 5 4 10 7 7 . 9 Detach 32 | . . . . 1 . 6 1 2 2 2 3 2 7 1 5 Swap 111 | 2 25 10 1 1 20 24 12 . 1 8 . 5 . . 2 Drop 178 | . 20 4 6 6 31 42 9 3 5 7 10 19 1 6 9 Fire 493 | 21 72 34 . . 34 46 84 47 9 1 33 64 31 . 17 Melee 38 | . . . . 1 6 10 4 4 3 . . . 3 7 . Ram . | . . . . . . . . . . . . . . . . Kick . | . . . . . . . . . . . . . . . . Crush . | . . . . . . . . . . . . . . . . Escape Stasis 8 | . . . . . . 8 . . . . . . . . . Rewire 10 | . . . . . . . . . 1 . . 9 . . . Trap . | . . . . . . . . . . . . . . . . Miscellaneous . | . . . . . . . . . . . . . . . . Route ------- -11/Scrapyard -10/Materials (discovered 5 exits: [*Mat x3] / *Min / [*Sub]) -10/Mines (discovered 4 exits: [*Mat x2] / *Exi / [*Sub]) -10/Exiles -9/Mines -8/Materials (discovered 3 exits: *Fac x2 / [*Sto]) -7/Factory (discovered 6 exits: *Fac x4 / *Low x2) -6/Factory -6/Lower Caves -6/Lower Caves -6/Zion -5/Proximity Caves -5/Factory (discovered 4 exits: [*Fac] / *Upp x2 / *Ext) -5/Upper Caves -5/Upper Caves (discovered 2 exits: [*Fac] / *War) -5/Warlord History --------- Turn | Location | Event 9 | -11/Scrapyard | Discovered new exit (range 15) 222 | -11/Scrapyard | Entered Materials 321 | -10/Materials | Build established: Mutant 621 | -10/Materials | Discovered new exit (range 5) 843 | -10/Materials | Discovered new exit (range 7) 1195 | -10/Materials | Discovered new exit (range 7) 1309 | -10/Materials | Discovered new exit (range 8) 1316 | -10/Materials | Central database locked down 1639 | -10/Materials | Discovered new exit (range 11) 1923 | -10/Materials | Entered Mines 1948 | -10/Mines | Met a Derelict bent on vengeance 1964 | -10/Mines | Learned location of Zion (-6) 2023 | -10/Mines | Received a Rocket Launcher from a helpful Derelict 2099 | -10/Mines | Assembled infested the area 2429 | -10/Mines | Discovered new exit (range 5) 2515 | -10/Mines | Discovered new exit (range 14) 2519 | -10/Mines | A weapon hastily lodged in a ceiling crevice suddenly fell to the ground 2616 | -10/Mines | Discovered new exit (range 6) 2664 | -10/Mines | Learned 2 Materials zone layouts 2806 | -10/Mines | Discovered new exit (range 10) 2902 | -10/Mines | Met a Derelict testing a Signal Generator 3177 | -10/Mines | Entered Exiles 3177 | -10/Exiles | Accompanied by 1 ally 3205 | -10/Exiles | Met 8R-AWN 3226 | -10/Exiles | Met EX-HEX 3259 | -10/Exiles | Met EX-BIN 3273 | -10/Exiles | Aligned with FarCom system 3274 | -10/Exiles | Given EX-Vault access code 3301 | -10/Exiles | Opened EX-Vault 3310 | -10/Exiles | Found AWS/Gauss 3336 | -10/Exiles | Found PSU Rigger 3361 | -10/Exiles | Warned to stay clear of 0b10 Research branches 3392 | -10/Exiles | Met EX-DEC 3586 | -10/Exiles | Discovered new exit (range 10) 3598 | -10/Exiles | Stole two prototypes: AWS/Gauss, PSU Rigger 3598 | -10/Exiles | Entered Mines 3598 | -9/Mines | Accompanied by 1 ally 3618 | -9/Mines | Met a Derelict shopkeep closing up shop 3654 | -9/Mines | Assisted by bots powering up and referring to "LRC-V3" 3687 | -9/Mines | Learned location of 1 exit from Lower Caves 3702 | -9/Mines | Discovered new exit (range 13) 3837 | -9/Mines | Excavation squad dispatched 3837 | -9/Mines | A large section of the Mines collapsed 4017 | -9/Mines | Entered Materials 4017 | -8/Materials | Accompanied by 4 allies 4017 | -8/Materials | Evolved 4 slots: Propulsion x2, Utility x2 4500 | -8/Materials | Discovered new exit (range 11) 4736 | -8/Materials | Discovered new exit (range 19) 4814 | -8/Materials | Central database locked down 5216 | -8/Materials | AWS/Gauss suddenly broke down 5460 | -8/Materials | Discovered new exit (range 20) 5569 | -8/Materials | Entered Factory 5569 | -7/Factory | Evolved 2 slots: Propulsion x1, Utility x1 5571 | -7/Factory | FarCom data flow suspended 6122 | -7/Factory | Build established: Hacker-Mutant 6149 | -7/Factory | Identified exit to Lower Caves 6529 | -7/Factory | AWS/Gauss suddenly broke down 6677 | -7/Factory | Repaired Imp. Carbon-fiber Leg 6784 | -7/Factory | AWS/Gauss suddenly broke down 6826 | -7/Factory | Identified exit to Factory 7298 | -7/Factory | AWS/Gauss suddenly broke down 7313 | -7/Factory | Cargo convoy interrupted 7341 | -7/Factory | Entered another Factory area 7341 | -6/Factory | Evolved 2 slots: Propulsion x1, Utility x1 7368 | -6/Factory | Lost 5 parts (3n1u1w) 7710 | -6/Factory | Repaired Med. Reactive Plating 7807 | -6/Factory | Repaired Rnf. Deuterium Engine? 8650 | -6/Factory | Build established: Hacker-Assassin 8741 | -6/Factory | First assault squad dispatched 8860 | -6/Factory | Discovered new exit (range 9) 8873 | -6/Factory | Identified exit to Lower Caves 8970 | -6/Factory | Entered Lower Caves 8971 | -6/Lower Caves | Identified exit to Lower Caves 8972 | -6/Lower Caves | Attracted the attention of an 0b10 checkpoint 9084 | -6/Lower Caves | Lost 8 parts (1p5n1u1w) 9331 | -6/Lower Caves | Build established: Mutant 10864 | -6/Lower Caves | Build established: Assassin 12206 | -6/Lower Caves | Entered a destroyed Warlord outpost 12298 | -6/Lower Caves | Entered another Lower Caves area 12298 | -6/Lower Caves | Spotted 1C-TWL(f) 12298 | -6/Lower Caves | Spotted 32-Y8V(f) 12298 | -6/Lower Caves | Spotted KI-WV9(f) 12299 | -6/Lower Caves | PSU Rigger stolen by Master Thief 12300 | -6/Lower Caves | Encountered a Master Thief 12300 | -6/Lower Caves | Encountered a Master Thief 12300 | -6/Lower Caves | Encountered a Master Thief 12304 | -6/Lower Caves | Rnf. Deuterium Engine stolen by Master Thief 12306 | -6/Lower Caves | Destroyed KI-WV9(f) 12399 | -6/Lower Caves | Lost 3 parts (1p1n1w) 12600 | -6/Lower Caves | Build established: Mutant 12757 | -6/Lower Caves | Entered a destroyed Warlord outpost 12825 | -6/Lower Caves | Discovered new exit (range 8) 12837 | -6/Lower Caves | Identified exit to Zion 12839 | -6/Lower Caves | Entered Zion 13079 | -6/Zion | Discovered new exit (range 15) 13693 | -6/Zion | Learned Factory emergency access door positions 13963 | -6/Zion | Learned location of Quarantine (-3) 14078 | -6/Zion | Learned 4 Factory zone layouts 14270 | -6/Zion | Found Prototype Device 14270 | -6/Zion | Identified Mobile Refinery Mk. CCLXVII 14299 | -6/Zion | Given A8's code to call for help 14552 | -6/Zion | Met Imprinter 14582 | -6/Zion | Imprinted 14584 | -6/Zion | Declared Zion's savior 14767 | -6/Zion | Found Prototype Processor 14767 | -6/Zion | Identified Exp. Armor Integrity Analyzer 14782 | -6/Zion | Found Prototype Processor 14782 | -6/Zion | Identified Exp. Signal Interpreter 14786 | -6/Zion | Found Prototype Processor 14786 | -6/Zion | Identified Exp. Terrain Scan Processor 15187 | -6/Zion | Identified exit to Proximity Caves 15208 | -6/Zion | Entered Proximity Caves 15208 | -5/Proximity Caves | Accompanied by 4 allies 15232 | -5/Proximity Caves | Acquired the password to a Derelict Tinkerer's latest research 15246 | -5/Proximity Caves | Found Prototype Special Weapon 15259 | -5/Proximity Caves | Identified Molecular Deconstructor 15355 | -5/Proximity Caves | Lost 3 allies 15512 | -5/Proximity Caves | Spotted B-75 Beast 15555 | -5/Proximity Caves | Caught by Unaware searching for contraband prototypes 15558 | -5/Proximity Caves | Destroyed B-75 Beast 15562 | -5/Proximity Caves | Core integrity fell below 50% 15565 | -5/Proximity Caves | AWS/Gauss suddenly broke down 15724 | -5/Proximity Caves | Caught by Unaware searching for contraband prototypes 16339 | -5/Proximity Caves | Discovered new exit (range 13) 16361 | -5/Proximity Caves | Identified exit to Factory 16362 | -5/Proximity Caves | Entered Factory 16362 | -5/Factory | Evolved 2 slots: Utility x1, Weapon x1 16363 | -5/Factory | Identified exit to Upper Caves 16363 | -5/Factory | Identified exit to Extension 16579 | -5/Factory | Retrieved Zion intel report: Active Terminals 16758 | -5/Factory | Build established: Skirmisher 17001 | -5/Factory | Retrieved Zion intel report: Trap Installations 17002 | -5/Factory | Zion Light squad teleported in 17069 | -5/Factory | Build established: Scavenger-Skirmisher 17074 | -5/Factory | Discovered exit to Upper Caves (range 12) 17411 | -5/Factory | Found Prototype Protection 17411 | -5/Factory | Identified Zio. Weapon Casing 17498 | -5/Factory | System corruption reached 10% 17538 | -5/Factory | Released all parts (16) 17555 | -5/Factory | Zion Light squad teleported in 17569 | -5/Factory | Lost 7 parts (6u1w) 17586 | -5/Factory | Discovered new exit (range 13) 17601 | -5/Factory | Zion Heavy squad teleported in 17601 | -5/Factory | Lost 3 allies 17621 | -5/Factory | Found Prototype Protection 17621 | -5/Factory | Identified Zio. Heavy Carapace 17725 | -5/Factory | Found Prototype Processor 17725 | -5/Factory | Identified Exp. Targeting Computer 17786 | -5/Factory | Fabricated Med. Armored Exoskeleton (x1) 17833 | -5/Factory | Build established: Mutant 17849 | -5/Factory | Terminal network hard line cut 17895 | -5/Factory | Fabricated Med. Armored Exoskeleton (x1) 18344 | -5/Factory | Entered Upper Caves 18556 | -5/Upper Caves | Attracted the attention of an 0b10 checkpoint 18640 | -5/Upper Caves | Core integrity fell below 50% 18948 | -5/Upper Caves | Encountered a Warlord checkpoint 19233 | -5/Upper Caves | Spotted B-75 Beast 19255 | -5/Upper Caves | Discovered new exit (range 6) 19264 | -5/Upper Caves | Entered another Upper Caves area 19265 | -5/Upper Caves | Identified exit to Warlord 19324 | -5/Upper Caves | Encountered a Warlord checkpoint 19340 | -5/Upper Caves | Discovered new exit (range 9) 20005 | -5/Upper Caves | Spotted AK-1BB(f) 20005 | -5/Upper Caves | Spotted IR-OHA(f) 20006 | -5/Upper Caves | Encountered a Master Thief 20006 | -5/Upper Caves | Encountered a Master Thief 20006 | -5/Upper Caves | Spotted HY-MBG(f) 20007 | -5/Upper Caves | Encountered a Master Thief 20007 | -5/Upper Caves | Spotted T7-NJB(f) 20008 | -5/Upper Caves | Encountered a Master Thief 20008 | -5/Upper Caves | Med. Armored Exoskeleton stolen by Master Thief 20009 | -5/Upper Caves | Med. Armored Exoskeleton stolen by Master Thief 20010 | -5/Upper Caves | Hrd. Heavy Armor Plating stolen by Master Thief 20017 | -5/Upper Caves | Lgt. Angular Momentum Engine stolen by Master Thief 20300 | -5/Upper Caves | Build established: Derelict-Mutant 20485 | -5/Upper Caves | Entered Warlord 21076 | -5/Warlord | Found Prototype Device 21785 | -5/Warlord | Warlord's base attacked by MAIN.C 22056 | -5/Warlord | Rebuked by Warlord 22135 | -5/Warlord | Warlord forces counterattacked 22267 | -5/Warlord | Found Prototype Energy Gun 22267 | -5/Warlord | Identified Vortex Shotgun 22279 | -5/Warlord | Found Prototype Energy Cannon 22279 | -5/Warlord | Identified Vortex Cannon 22286 | -5/Warlord | Found Prototype Launcher 22286 | -5/Warlord | Identified Vortex Catalyst Activator 22303 | -5/Warlord | Found Vortex Shotgun 22460 | -5/Warlord | Warlord base infiltrated, sounded retreat 22798 | -5/Warlord | Found Prototype Launcher 22798 | -5/Warlord | Identified Chain Missile Launcher 22824 | -5/Warlord | Spotted Executioner 22825 | -5/Warlord | Spotted B-86 Titan 22831 | -5/Warlord | Spotted Striker 22833 | -5/Warlord | Destroyed B-86 Titan 22840 | -5/Warlord | Destroyed Executioner 22853 | -5/Warlord | AWS/Gauss suddenly broke down 22860 | -5/Warlord | Lost 5 allies 22867 | -5/Warlord | Destroyed 13 combat bots 22869 | -5/Warlord | Destroyed Striker 22882 | -5/Warlord | Lost 5 parts (2n3u) 22890 | -5/Warlord | Released all parts (9) 22895 | -5/Warlord | Core integrity fell below 20% 22901 | -5/Warlord | Destroyed by P-70 Sage with High-powered Shock Rifle Last Messages --------------- Swarmer squad, with prototype support. 22886_ I-47 Archangel sends out distress signal. 22887_ The unstable cave ceiling collapses. 22890_ Exp. Targeting Computer destroyed. 22890_ Released Mass Driver. 22890_ Released Hrd. Heavy Armor Plating. 22890_ Released Cld. Fission Core. 22890_ Released Imp. Carbon-fiber Leg. 22890_ Released Huge Storage Unit. 22890_ Released Mak. Salvage Targeting Computer. 22890_ Released Hrd. Heavy Armor Plating. 22890_ Released Mass Driver. 22893_ Acquired 15 matter. 22894_ Acquired 27 matter. 22895_ The unstable cave ceiling collapses. 22896_ Destroyed Mic. Fission Core. 22898_ D-63 Destroyer destroyed. 22900_ P-80 Master suffers critical hit (Sunder). 22900_ P-80 Master Gamma Rifle ripped off. Map ----- +----------------------------------------------------+ | # ############ #########?????????????????? | | ## + # ?????????????????? | | ## ### # ""????????????????? | | % ## #?# # """???????????????? | | ## #?# # """#??????????????? | | # ## #? # """#??????????????? | | [ # ## ### # """#??????????????? | | % ## +^^^# #??????????????? | | ## ######+####^^^# """#??????????????? | | # ## # #"#### # """#??????????????? | | # % =%! [ # """#??????????????? | | *[ + """#??????????????? | | # =*%! # """#??????????????? | | ## !%= p ### #??????????????? | | # #### #p== ########??????????????? | | # ???### ##????????????????????? | | + ##?????# # ###??????????????????? | | # ##??????# # ! # #??????????????????? | | ## ###???????# # ]*= ] ##?????????????????? | | ?# #?????????## [* !! #??"??????????????? | | ?# ##?????????# ![ ##""#?????????????? | | ?#= #?????????# ;= ! ;""#?????????????? | | ?# ##???????X"# [[ "##????????????? | | ?# #??????? "";;;% !####?????????? | | ?# #?????? " #; [ = [="########### | | ?# #?????? ###;; ! @ ] = !!!*""""""""" | | ##+#######??####; ; %]!!""""""""" | | # * % %%[%! | | # *[%= % % =!% | | # %= = !*[=* | | # = %*! | | """ """ #### # % *==""""""""""" | | """ """ #?# # *!!!""""""""""" | | """ """ #?## # % ]*!"########### | | #?## ;;## ;;; #!###?????????? | | #####+##### # ; "#?????????????? | | ??# ## ; "#?????????????? | | ### ^ #? ;""??????????????? | | # ^ #?## ;????????????????? | | # ######+##??????????????????????? | | # #############?????????????????????????????? | | + ^+ #?????????????????????????????? | | # ## #?????????????????????????????? | | ^+ ## #?????????????????????????????? | | ###### #?????????????????????????????? | | #????# #?????????????????????????????? | | +##????# #?????????????????????????????? | | #?????# #?????????????????????????????? | | ############+######?????????????????????????????? | | #??????????????????????????????????? | +----------------------------------------------------+ Best States ------------- Heat Dissipation 64 Energy Generation 35 Energy Capacity 350 Matter Stores 300 Matter Capacity 300 Sight Range 22 Robot Scan Range 16 Terrain Scan Density 1010 Jamming Range 12 Armor Coverage 1200 Resistance: KI 30 Weapon Shielding 100 Point Defense Rating 80 Evasion (%) 62 Targeting Accuracy 12 Launcher Accuracy 20 Armor Integrity Analysis 50 Recoil Reduction 4 Salvage Targeting 6 Offensive Hacking 30 Authchip Count 6 Item Schematics ----------------- Hcp. Storage Unit | -10/Materials | Hacked Huge Storage Unit | -10/Materials | Hacked Imp. Carbon-fiber Leg | -8/Materials | Scanalyzed Enh. Autogun | -8/Materials | Scanalyzed Prc. Beam Rifle | -8/Materials | Scanalyzed Adv. Beam Rifle | -8/Materials | Scanalyzed Cooling System | -8/Materials | Scanalyzed Hacking Suite | -8/Materials | Scanalyzed Hcp. Matter Pod | -8/Materials | Scanalyzed Spear | -8/Materials | Scanalyzed Mic. Nuclear Core | -8/Materials | Scanalyzed Seismic Detector | -8/Materials | Scanalyzed Rocket Launcher | -8/Materials | Scanalyzed Hvy. Armor Plating | -8/Materials | Hacked Minigun | -8/Materials | Hacked Imp. Cooling System | -7/Factory | Scanalyzed Plasma Cannon | -7/Factory | Scanalyzed Cld. Pulse Rifle | -7/Factory | Scanalyzed Recalibrator | -7/Factory | Scanalyzed Hrd. Heavy Armor Plating | -7/Factory | Scanalyzed Rnf. Deuterium Engine | -7/Factory | Scanalyzed Myomer Leg | -6/Factory | Hacked Imp. Hacking Suite | -6/Factory | Hacked Med. Armored Exoskeleton | -6/Factory | Hacked Hvy. Flak Cannon | -6/Zion | Archive Adv. Recoil Stabilizer | -6/Zion | Archive Lyr. Medium Armor Plating | -6/Zion | Archive Adv. Shield Generator | -6/Zion | Archive Thermal Shield | -6/Zion | Archive Neutrino Core | -6/Zion | Archive Focal Shield | -6/Zion | Archive Imp. Force Field | -6/Zion | Archive Thermic Laser | -6/Zion | Archive Imp. Transmission Jammer | -6/Zion | Archive Imp. Arc Projector | -6/Zion | Archive Adv. Sensor Array | -6/Zion | Archive Hvy. Phase Cannon | -6/Zion | Archive Robot Schematics ------------------ L-41 Fighter | -6/Zion | Archive T-07 Excavator | -6/Zion | Archive A-02 Transporter | -6/Zion | Archive X-77 Beamer | -6/Zion | Archive Fabricated ------------ Med. Armored Exoskeleton | x1 | -5/Factory | Authchip Med. Armored Exoskeleton | x1 | -5/Factory | Authchip Repaired ---------- Imp. Carbon-fiber Leg | 17% | -7/Factory Med. Reactive Plating | 67% | -6/Factory Rnf. Deuterium Engine | 58% | -6/Factory Alien Tech Used ----------------- None Achievements -------------- None Challenges ------------ None Game ------ Seed ShieldRingOptics Manual? 0 Play Time 02:55:21 Cumulative 279.2 hours Start 2025.08.28 @ 13:21:39 End 2025.08.28 @ 18:26:04 Sessions 3 Manual Loads 0 Difficulty Rogue Special Mode None Game No. 189 Rogue 189 Adventurer 0 Explorer 0 Win Type - Total 3 Types 3/0/0/0/0/0/0/0/0/0 Lore% 73 Gallery% 72 Achievement% 60 Wizard Run 0 Options --------- Layout 1 ASCII 0 Keyboard 0 Movement Mouse Keybinds 0 Fullscreen 1 Font 32/SmallcapsGlow Map View 50x35 Zoom Use 0% Tactical HUD 1 Map Filters NONE Filters NONE Steam 1 RUN: 8e64510b-f07d-46fd-af3a-f73a36f9f00a